bitfinex/quotes_SOLUSD_20251127
["timestamp","ask_amount","ask_price","bid_price","bid_amount"]
[1764249304839,0.68,141.33,141.3,7.7770267]
[1764249305447,2.93842594,141.34,141.31,0.7]
[1764249305850,0.1,141.34,141.31,2.85842594]
[1764249306039,0.78,141.34,141.31,2.85842594]
[1764249306658,0.78,141.34,141.31,9.93483365]
[1764249307239,0.78,141.34,141.31,7.77640771]
[1764249307447,0.78,141.34,141.31,9.93483365]
[1764249307654,0.1,141.34,141.32,2.85842594]
[1764249308041,0.1,141.34,141.33,0.7]
[1764249309265,0.1,141.34,141.33,7.77563857]
[1764249309447,0.1,141.34,141.33,9.93406451]
[1764249311255,0.1,141.34,141.33,84.93406451]
[1764249313976,0.1,141.34,141.33,93.74400943]
[1764249314264,0.1,141.34,141.33,102.37771319]
[1764249314469,1e-08,141.34,141.33,102.37771319]
[1764249314670,0.1,141.36,141.35,100.11880892]
[1764249314845,0.1,141.36,141.35,105.39723486]
[1764249315165,0.1,141.36,141.35,106.08723486]
[1764249315408,1e-08,141.36,141.35,108.91899302]
[1764249316071,1e-08,141.36,141.35,115.99363044]
[1764249316481,0.1,141.39,141.38,91.308864]
[1764249316784,0.1,141.39,141.38,96.58728994]
[1764249316948,0.1,141.39,141.38,97.27728994]
[1764249317149,0.1,141.44,141.42,8.80994492]
[1764249317373,0.1,141.44,141.43,80.27842594]
[1764249317686,0.1,141.44,141.43,80.96842594]
[1764249318371,0.1,141.44,141.43,88.03906159]
[1764249318548,0.1,141.44,141.43,3.81]
[1764249318749,0.1,141.44,141.43,13.03906159]
[1764249319097,0.1,141.44,141.43,96.84900651]
[1764249320066,0.1,141.44,141.43,12.34906159]
[1764249320265,0.1,141.44,141.43,10.88063565]
[1764249320472,0.1,141.44,141.43,13.03906159]
[1764249320675,0.1,141.44,141.43,14.24169156]
[1764249321142,0.1,141.44,141.43,3.12]
[1764249321345,0.79,141.44,141.42,3.12]
[1764249322168,0.79,141.44,141.42,6.48105591]
[1764249322368,0.79,141.44,141.42,13.55215577]
[1764249323357,0.1,141.44,141.42,13.55215577]
[1764249324578,0.1,141.44,141.42,10.43215577]
[1764249325279,0.1,141.44,141.43,10.43169156]
[1764249325500,0.1,141.44,141.43,11.12169156]
[1764249325857,0.79,141.44,141.42,10.43205179]
[1764249326062,0.1,141.44,141.42,3.36105591]
[1764249326777,0.69,141.43,141.4,10.43301219]
[1764249326976,0.1,141.44,141.42,3.36105591]
[1764249327483,0.1,141.44,141.42,10.43217577]
[1764249327484,0.79,141.44,141.42,10.43217577]
[1764249327779,0.79,141.44,141.42,7.07111986]
[1764249328082,0.79,141.44,141.41,11.12263125]
[1764249328976,0.1,141.44,141.42,4.05105591]
[1764249329483,0.1,141.44,141.42,11.12183338]
[1764249329870,0.1,141.44,141.42,4.05105591]
[1764249330072,0.1,141.44,141.42,11.12208551]
[1764249330662,0.1,141.44,141.43,4.05105591]
[1764249330861,0.1,141.44,141.43,3.36105591]
[1764249331779,0.1,141.44,141.43,10.43169156]
[1764249332170,0.1,141.44,141.42,14.24203113]
[1764249334106,0.79,141.44,141.42,3.12]
[1764249334459,0.79,141.44,141.42,6.48105591]
[1764249334664,3.36105591,141.43,141.38,3.36105591]
[1764249334969,3.36105591,141.42,141.38,3.36105591]
[1764249335182,4.05105591,141.42,141.38,3.36105591]
[1764249335362,0.69,141.41,141.38,3.36105591]
[1764249335563,4.05105591,141.41,141.37,3.12]
[1764249335762,4.05105591,141.41,141.37,3.36105591]
[1764249335983,0.69,141.4,141.37,11.12453453]
[1764249336367,0.69,141.4,141.38,3.36105591]
[1764249337371,0.69,141.4,141.37,11.12453453]
[1764249338179,0.69,141.4,141.37,7.76347862]
[1764249338367,0.69,141.4,141.37,11.12453453]
[1764249338567,0.69,141.4,141.37,4.05105591]
[1764249338772,0.69,141.4,141.37,11.12465802]
[1764249339188,4.05105591,141.42,141.38,4.05105591]
[1764249339394,0.69,141.41,141.38,4.05105591]
[1764249340395,0.65539557,141.41,141.38,11.12410309]
[1764249340769,7.07129519,141.42,141.39,3.36105591]
[1764249340979,10.4323511,141.42,141.38,4.04105591]
[1764249342162,10.4323511,141.42,141.38,11.11414849]
[1764249342363,0.71,141.41,141.38,11.11414849]
[1764249342781,0.71,141.41,141.38,3.36105591]
[1764249343093,4.07105591,141.41,141.37,3.36105591]
[1764249343278,3.36105591,141.4,141.36,14.23495778]
[1764249343589,3.36105591,141.39,141.36,3.12]
[1764249343773,0.71,141.39,141.36,6.48105591]
[1764249343981,0.71,141.38,141.36,13.55513675]
[1764249344668,0.71,141.38,141.36,10.43513675]
[1764249344863,0.71,141.38,141.36,3.36105591]
[1764249345077,7.78320684,141.38,141.35,6.48105591]
[1764249345383,0.71,141.38,141.35,4.04105591]
[1764249345690,0.71,141.38,141.37,3.36105591]
[1764249345994,0.71,141.4,141.37,3.36105591]
[1764249346677,7.7823488,141.4,141.37,3.36105591]
[1764249347075,0.71,141.39,141.36,3.36105591]
[1764249347388,0.71,141.39,141.36,10.43503591]
[1764249348282,0.71,141.39,141.35,7.07448194]
[1764249348589,0.71,141.39,141.36,3.36105591]
[1764249348785,7.78305913,141.39,141.35,11.11553785]
[1764249349114,7.78305913,141.39,141.35,10.43553785]
[1764249349290,0.71,141.38,141.35,10.43553785]
[1764249349495,0.71,141.38,141.35,11.11553785]
[1764249350182,0.71,141.38,141.36,3.36105591]
[1764249350899,7.78235397,141.4,141.37,3.36105591]
[1764249351289,0.71,141.39,141.35,7.07446484]
[1764249351483,0.71,141.39,141.36,3.36105591]
[1764249352478,0.71,141.39,141.35,10.43552075]
[1764249352695,0.71,141.39,141.35,11.11552075]
[1764249352890,11.1440075,141.39,141.35,10.43552075]
[1764249353087,3.36105591,141.38,141.31,75.0]
[1764249353395,3.36105591,141.37,141.33,3.36105591]
[1764249353586,4.07105591,141.37,141.33,3.36105591]
[1764249353899,0.71,141.36,141.33,3.36105591]
[1764249354094,0.71,141.36,141.33,4.04105591]
[1764249354279,0.71,141.36,141.34,3.36105591]
[1764249354771,0.71,141.37,141.34,3.36105591]
[1764249355295,7.7837095,141.37,141.34,3.36105591]
[1764249355474,11.14476541,141.37,141.33,3.36105591]
[1764249355679,0.71,141.36,141.32,7.75598174]
[1764249355888,0.71,141.36,141.33,3.36105591]
[1764249356696,7.78444108,141.36,141.32,7.07598174]
[1764249356899,7.78444108,141.36,141.33,3.36105591]
[1764249357095,0.71,141.35,141.33,3.36105591]
[1764249357595,0.71,141.35,141.31,3.36105591]
[1764249357596,4.07105591,141.35,141.31,3.36105591]
[1764249357798,4.07105591,141.35,141.29,20.108864]
[1764249358097,3.36105591,141.33,141.29,3.36105591]
[1764249358286,3.36105591,141.32,141.28,6.48105591]
[1764249358692,0.71,141.31,141.28,3.36105591]
[1764249359003,11.14792572,141.31,141.25,0.68]
[1764249359199,11.14792572,141.31,141.27,3.36105591]
[1764249359376,0.71,141.3,141.27,3.36105591]
[1764249360377,4.07105591,141.3,141.25,7.07931355]
[1764249360580,4.07105591,141.3,141.25,0.68]
[1764249360800,0.71,141.29,141.26,3.36105591]
[1764249360981,0.71,141.29,141.27,3.36105591]
[1764249361397,0.71,141.29,141.25,0.68]
[1764249361398,11.14881548,141.29,141.25,3.36105591]
[1764249361899,0.71,141.28,141.25,3.36105591]
[1764249362705,7.78824545,141.28,141.25,3.36105591]
[1764249363001,3.36105591,141.27,141.22,3.56105591]
[1764249363203,4.07105591,141.27,141.22,3.56105591]
[1764249363381,4.07105591,141.26,141.22,3.56105591]
[1764249363807,4.07105591,141.26,141.22,0.2]
[1764249363808,0.71,141.25,141.22,0.2]
[1764249363990,0.71,141.25,141.22,3.56105591]
[1764249364191,3.36105591,141.24,141.22,0.2]
[1764249364390,10.44170449,141.23,141.22,0.2]
[1764249364787,11.15170449,141.23,141.22,0.2]
[1764249365605,14.27170449,141.23,141.22,0.2]
[1764249369606,23.08164941,141.23,141.22,0.2]
[1764249370694,11.15170449,141.23,141.22,0.2]
[1764249370895,3.83,141.23,141.22,0.2]
[1764249371508,10.91064858,141.23,141.22,0.2]
[1764249371695,14.27170449,141.23,141.22,0.2]
[1764249372690,7.79064858,141.23,141.22,0.2]
[1764249372896,3.83,141.23,141.22,0.2]
[1764249373311,10.91064858,141.23,141.22,0.2]
[1764249373516,14.27170449,141.23,141.22,0.2]
[1764249374519,70.73762479,141.23,141.16,8.80994492]
[1764249374696,8.80994492,141.16,141.14,0.2]
[1764249374894,15.31100083,141.15,141.14,0.2]
[1764249375408,3.81,141.15,141.14,0.2]
[1764249375600,27.42458161,141.15,141.14,0.2]
[1764249375804,39.37452653,141.15,141.14,0.2]
[1764249375996,30.56458161,141.15,141.14,0.2]
[1764249376315,3.81,141.15,141.14,0.2]
[1764249376514,0.67,141.18,141.14,4.27105591]
[1764249376692,3.14,141.17,141.14,0.2]
[1764249376897,3.36105591,141.16,141.14,0.2]
[1764249377196,3.14,141.17,141.14,0.2]
[1764249377413,26.75309058,141.18,141.14,4.27105591]
[1764249377595,3.14,141.16,141.14,4.27105591]
[1764249377790,3.14,141.17,141.14,4.27105591]
[1764249379698,7.08322256,141.18,141.15,4.07105591]
[1764249379899,1.55514374,141.22,141.17,3.36105591]
[1764249380112,1.55514374,141.22,141.16,0.71]
[1764249380113,11.7772859,141.21,141.16,0.71]
[1764249380317,15.13834181,141.21,141.17,3.36105591]
[1764249380505,7.9672859,141.21,141.18,3.36105591]
[1764249380707,3.14,141.2,141.18,3.36105591]
[1764249380995,0.8850184,141.24,141.19,4.07105591]
[1764249381201,3.14,141.23,141.21,3.36105591]
[1764249381396,3.14,141.23,141.2,4.07105591]
[1764249381702,10.22071046,141.23,141.2,4.07105591]
[1764249381904,3.14,141.23,141.2,4.07105591]
[1764249382103,7.96533335,141.24,141.21,0.71]
[1764249382318,3.14,141.23,141.2,0.71]
[1764249382509,6.50105591,141.23,141.2,0.71]
[1764249382698,3.14,141.23,141.2,0.71]
[1764249383302,8.27964641,141.23,141.2,0.71]
[1764249384119,3.14,141.23,141.2,0.71]
[1764249384316,3.14,141.23,141.2,5.84964641]
[1764249385321,10.22075531,141.23,141.2,5.84964641]
[1764249385620,6.02466481,141.24,141.21,0.71]
[1764249385824,11.10523237,141.24,141.21,0.71]
[1764249386401,4.0250184,141.24,141.21,0.71]
[1764249386603,0.8848931,141.26,141.22,5.13964641]
[1764249386803,3.14,141.25,141.22,5.13964641]
[1764249387002,3.14,141.25,141.23,5.84964641]
[1764249387505,3.14,141.25,141.24,0.71]
[1764249388117,3.14,141.25,141.23,5.13964641]
[1764249388321,3.14,141.25,141.24,0.71]
[1764249388520,0.88483046,141.27,141.24,0.71]
[1764249388704,3.14,141.26,141.24,5.84964641]
[1764249389112,3.14,141.27,141.25,0.71]
[1764249393211,3.14,141.27,141.23,0.71]
[1764249393429,10.88867139,141.27,141.23,5.84964641]
[1764249393627,16.91314826,141.27,141.23,0.71]
[1764249393814,16.91314826,141.27,141.15,1.99999999]
[1764249393815,16.308864,141.24,141.14,75.91]
[1764249394015,5.13964641,141.17,141.14,0.91]
[1764249394216,3.14,141.17,141.14,0.2]
[1764249394424,0.67,141.16,141.14,0.2]
[1764249394737,10.89390884,141.17,141.14,0.2]
[1764249394932,5.13964641,141.16,141.14,0.2]
[1764249397135,3.81,141.17,141.14,0.2]
[1764249397337,10.89371577,141.17,141.14,0.2]
[1764249397525,5.13964641,141.15,141.14,0.2]
[1764249397715,0.67,141.16,141.14,0.2]
[1764249398033,5.80964641,141.16,141.14,0.2]
[1764249398219,0.67,141.16,141.14,0.2]
[1764249398420,5.13964641,141.15,141.14,0.2]
[1764249398813,5.13964641,141.16,141.14,0.2]
[1764249399319,5.80964641,141.17,141.14,0.2]
[1764249399521,7.08327427,141.18,141.15,0.71]
[1764249399522,3.14,141.18,141.15,0.71]
[1764249399726,5.80964641,141.17,141.14,0.2]
[1764249399936,8.27964641,141.18,141.14,7.97508804]
[1764249400318,8.27964641,141.18,141.14,0.89]
[1764249400536,5.13964641,141.17,141.14,0.89]
[1764249401040,12.22334349,141.17,141.14,0.89]
[1764249401227,3.14,141.16,141.14,0.89]
[1764249402437,5.13964641,141.18,141.14,7.28516208]
[1764249402641,3.14,141.17,141.15,0.69]
[1764249402845,3.14,141.18,141.15,12.91422687]
[1764249403219,3.14,141.18,141.16,0.69]
[1764249403939,5.13964641,141.19,141.16,0.69]
[1764249404135,3.86,141.19,141.16,0.69]
[1764249404339,3.14,141.19,141.16,5.82964641]
[1764249404541,3.14,141.19,141.16,0.69]
[1764249404841,3.14,141.19,141.15,12.22415065]
[1764249405020,3.14,141.19,141.16,0.69]
[1764249405543,7.08273501,141.19,141.16,0.69]
[1764249405739,10.22273501,141.19,141.16,0.69]
[1764249406816,6.74504094,141.18,141.14,0.89]
[1764249407220,5.85964641,141.17,141.14,0.89]
[1764249407517,8.27964641,141.16,141.14,0.2]
[1764249407921,0.72,141.15,141.14,0.2]
[1764249408137,5.85964641,141.15,141.14,0.2]
[1764249409044,12.94430811,141.15,141.14,0.2]
[1764249410148,16.08430811,141.15,141.14,0.2]
[1764249411938,15.36430811,141.15,141.14,0.2]
[1764249412332,10.2246617,141.15,141.14,0.2]
[1764249412527,15.36430811,141.15,141.14,0.2]
[1764249414226,16.308864,141.12,141.11,72.17202983]
[1764249414433,24.58851041,141.12,141.11,72.17202983]
[1764249414650,25.30851041,141.12,141.11,72.17202983]
[1764249414830,24.58851041,141.12,141.11,72.17202983]
[1764249415236,20.168864,141.12,141.11,72.17202983]
[1764249415541,32.39467821,141.12,141.11,72.17202983]
[1764249416832,31.67467821,141.12,141.11,72.17202983]
[1764249417036,26.5350318,141.12,141.11,72.17202983]
[1764249417544,19.448864,141.12,141.11,72.17202983]
[1764249417852,0.88564545,141.14,141.11,72.86202983]
[1764249418054,3.14,141.13,141.12,0.69]
[1764249418851,13.11052812,141.14,141.12,0.69]
[1764249419042,3.14,141.13,141.12,0.69]
[1764249419349,7.08523626,141.14,141.12,0.69]
[1764249419557,3.14,141.13,141.12,0.69]
[1764249419732,3.14,141.13,141.11,72.17202983]
[1764249420356,3.14,141.13,141.11,72.86202983]
[1764249420557,3.14,141.13,141.12,0.69]
[1764249421239,3.14,141.14,141.12,0.69]
[1764249421544,7.97004051,141.16,141.12,5.82964641]
[1764249421731,7.08332024,141.18,141.14,5.13964641]
[1764249421934,3.14,141.17,141.13,5.82964641]
[1764249422135,3.14,141.17,141.14,5.13964641]
[1764249422460,3.14,141.17,141.15,0.69]
[1764249423051,3.14,141.17,141.13,5.82964641]
[1764249423237,8.27964641,141.17,141.13,0.69]
[1764249423438,8.27964641,141.17,141.14,0.69]
[1764249423952,7.08415981,141.16,141.14,0.69]
[1764249424184,7.96967978,141.16,141.12,0.69]
[1764249424353,7.96967978,141.16,141.13,0.69]
[1764249425053,3.14,141.15,141.13,5.82964641]
[1764249425556,3.14,141.15,141.14,0.69]
[1764249426461,0.88551997,141.16,141.14,0.69]
[1764249426634,4.02551997,141.16,141.14,0.69]
[1764249426834,11.10969083,141.16,141.14,0.69]
[1764249428331,10.22417086,141.16,141.14,0.69]
[1764249428539,3.14,141.16,141.14,0.69]
[1764249429874,7.08236491,141.2,141.16,7.08415981]
[1764249430079,7.08236491,141.2,141.17,5.80964641]
[1764249430462,7.08236491,141.2,141.18,0.67]
[1764249430771,7.08236491,141.2,141.17,0.67]
[1764249431374,5.13964641,141.18,141.11,76.54219403]
[1764249431542,5.13964641,141.15,141.11,72.84202983]
[1764249431741,3.14,141.14,141.11,72.84202983]
[1764249431966,3.14,141.15,141.12,0.67]
[1764249432272,4.02558271,141.15,141.12,0.67]
[1764249432845,3.14,141.15,141.12,0.67]
[1764249433871,10.22469027,141.15,141.12,0.67]
[1764249434569,5.13964641,141.14,141.11,72.84202983]
[1764249434765,34.63157365,141.15,141.12,0.67]
[1764249435267,33.96157365,141.15,141.12,0.67]
[1764249435765,12.2253121,141.13,141.11,72.17202983]
[1764249436144,3.14,141.12,141.11,72.17202983]
[1764249436346,7.08566569,141.13,141.11,72.84202983]
[1764249436580,3.14,141.12,141.11,72.84202983]
[1764249436947,10.22566569,141.13,141.11,72.84202983]
[1764249437344,16.0353121,141.13,141.11,72.17202983]
[1764249437650,10.22566569,141.13,141.11,72.17202983]
[1764249437855,15.3653121,141.13,141.11,72.17202983]
[1764249438158,10.22566569,141.13,141.12,0.67]
[1764249438364,10.22566569,141.13,141.11,72.17202983]
[1764249438667,3.14,141.13,141.11,72.84202983]
[1764249438850,10.22571968,141.13,141.11,72.84202983]
[1764249439050,10.89571968,141.13,141.11,72.17202983]
[1764249439249,2.16145574,141.12,141.11,72.17202983]
[1764249440163,9.24762354,141.12,141.11,72.17202983]
[1764249442946,12.38733503,141.13,141.11,72.84202983]
[1764249443552,9.24685651,141.14,141.12,0.67]
[1764249443768,3.14,141.13,141.12,0.67]
[1764249443972,10.22540077,141.14,141.12,0.67]
[1764249444472,2.16145574,141.13,141.11,72.17202983]
[1764249444675,32.20145763,141.14,141.11,72.84202983]
[1764249444878,3.37750225,141.13,141.11,72.84202983]
[1764249445452,1.55539453,141.18,141.12,0.67]
[1764249445653,10.22367495,141.17,141.12,0.67]
[1764249445862,4.26302222,141.16,141.12,0.67]
[1764249446066,7.0846617,141.15,141.12,0.67]
[1764249446693,28.17381821,141.15,141.12,0.67]
[1764249446977,28.17381821,141.15,141.11,72.84202983]
[1764249446978,7.4031477,141.14,141.11,72.84202983]
[1764249447176,3.37750225,141.13,141.11,72.17202983]
[1764249447958,10.46367005,141.12,141.11,72.17202983]
[1764249448377,3.37750225,141.13,141.11,72.17202983]
[1764249449184,29.49394104,141.14,141.11,72.17202983]
[1764249449377,3.37750225,141.12,141.11,72.17202983]
[1764249449583,6.51750225,141.12,141.11,72.17202983]
[1764249449985,3.14,141.12,141.11,72.17202983]
[1764249450280,13.60367005,141.12,141.11,72.17202983]
[1764249451178,14.48944102,141.12,141.11,72.17202983]
[1764249451983,13.60367005,141.12,141.11,72.17202983]
[1764249452191,14.27367005,141.12,141.11,72.17202983]
[1764249454298,11.13367005,141.12,141.11,72.17202983]
[1764249454586,14.27367005,141.12,141.11,72.17202983]
[1764249457395,19.70611272,141.12,141.11,36.06831999]
[1764249457685,23.08361497,141.12,141.11,36.06831999]
[1764249459263,26.46111722,141.12,141.11,36.06831999]
[1764249459585,42.76998122,141.12,141.1,0.2]
[1764249459763,4.93333599,141.11,141.1,0.2]
[1764249460880,12.02000596,141.11,141.1,0.2]
[1764249462896,12.02000596,141.11,141.05,71.27785124]
[1764249462897,29.73668089,141.11,141.05,71.27785124]
[1764249463068,3.37750225,141.06,141.05,71.27785124]
[1764249463270,6.51750225,141.06,141.05,71.27785124]
[1764249465171,13.60668415,141.06,141.05,70.55785124]
[1764249465390,7.0891819,141.06,141.05,70.55785124]
[1764249465688,13.60668415,141.06,141.05,71.27785124]
[1764249467899,13.60668415,141.06,141.05,70.55785124]
[1764249468472,17.6441864,141.06,141.05,70.55785124]
[1764249468695,33.9530504,141.06,141.05,70.55785124]
[1764249469604,30.57554815,141.06,141.05,70.55785124]
[1764249469774,10.46668415,141.06,141.05,71.27785124]
[1764249469981,13.60668415,141.06,141.05,71.27785124]
[1764249470697,13.60668415,141.06,141.05,70.55785124]
[1764249471191,13.60668415,141.06,141.05,64.96697424]
[1764249471400,13.60668415,141.06,141.05,19.58155124]
[1764249472397,14.26668415,141.06,141.05,19.58155124]
[1764249472592,7.7491819,141.06,141.05,19.58155124]
[1764249472772,14.26668415,141.06,141.05,19.58155124]
[1764249473476,30.57554815,141.06,141.05,19.58155124]
[1764249474499,33.9530504,141.06,141.05,19.58155124]
[1764249474700,30.57554815,141.06,141.05,19.58155124]
[1764249475481,29.91554815,141.06,141.05,19.58155124]
[1764249475698,30.57554815,141.06,141.05,19.58155124]
[1764249475888,27.43554815,141.06,141.05,19.58155124]
[1764249476088,30.57554815,141.06,141.05,19.58155124]
[1764249476485,29.91554815,141.06,141.05,19.58155124]
[1764249476802,30.57554815,141.06,141.05,19.58155124]
[1764249478405,50.15709939,141.06,141.05,19.58155124]
[1764249479782,46.77959714,141.06,141.05,19.58155124]
[1764249479983,50.15709939,141.06,141.05,19.58155124]
[1764249480212,58.96704431,141.06,141.05,19.58155124]
[1764249480413,62.34454656,141.06,141.05,19.58155124]
[1764249480906,55.58954206,141.06,141.05,19.58155124]
[1764249481102,58.96704431,141.06,141.05,19.58155124]
[1764249481311,8.80994492,141.05,141.0,3.0]
[1764249481481,3.37750225,141.01,141.0,3.0]
[1764249481680,4.02627339,141.04,141.0,3.0]
[1764249481681,0.88627339,141.04,141.0,3.0]
[1764249481981,3.14,141.03,141.0,3.0]
[1764249482181,6.51750225,141.03,141.01,0.72]
[1764249482381,3.37750225,141.02,141.01,0.72]
[1764249482597,11.35344403,141.05,141.01,0.72]
[1764249482823,3.37750225,141.07,141.02,3.37750225]
[1764249482989,3.37750225,141.07,141.03,0.72]
[1764249483317,6.51750225,141.07,141.03,0.72]
[1764249483804,3.37750225,141.06,141.03,0.72]
[1764249484013,10.46668704,141.06,141.03,0.72]
[1764249484224,3.37750225,141.06,141.03,0.72]
[1764249484985,10.46574028,141.08,141.03,11.18813621]
[1764249485192,10.22823803,141.08,141.03,11.18813621]
[1764249485512,13.60574028,141.08,141.04,0.72]
[1764249485690,10.22823803,141.08,141.04,0.72]
[1764249485892,13.60574028,141.08,141.04,0.72]
[1764249486203,3.14,141.08,141.04,7.810161]
[1764249486407,6.51750225,141.08,141.04,7.810161]
[1764249486591,3.37750225,141.08,141.05,0.72]
[1764249486785,3.14,141.08,141.05,0.72]
[1764249486981,10.22787045,141.09,141.05,4.09750225]
[1764249487221,3.14,141.09,141.05,4.09750225]
[1764249487393,3.14,141.09,141.06,4.09750225]
[1764249487588,3.14,141.09,141.06,0.72]
[1764249487789,10.46471494,141.1,141.07,0.72]
[1764249488091,3.37750225,141.09,141.07,0.72]
[1764249488489,6.51750225,141.1,141.07,0.72]
[1764249488806,14.48949565,141.12,141.07,11.18617269]
[1764249489015,7.08577536,141.13,141.08,3.37750225]
[1764249489216,6.51750225,141.12,141.09,0.72]
[1764249489787,3.14,141.12,141.09,0.72]
[1764249490214,7.97037748,141.15,141.11,3.37750225]
[1764249490420,7.08479477,141.15,141.11,3.37750225]
[1764249490727,10.46174817,141.16,141.12,0.68]
[1764249490887,3.37750225,141.15,141.12,0.68]
[1764249491086,7.08424592,141.16,141.12,0.68]
[1764249491311,3.14,141.15,141.12,0.68]
[1764249492090,10.46174817,141.16,141.12,0.68]
[1764249492289,3.14,141.15,141.12,0.68]
[1764249492505,6.51750225,141.15,141.12,0.68]
[1764249494006,3.14,141.15,141.12,0.68]
[1764249494312,3.37750225,141.13,141.12,0.68]
[1764249494510,4.92321046,141.13,141.09,0.68]
[1764249494718,3.37750225,141.11,141.1,0.68]
[1764249494890,6.51750225,141.12,141.1,0.68]
[1764249495507,3.37750225,141.11,141.08,0.68]
[1764249495714,3.37750225,141.1,141.08,0.68]
[1764249497208,3.37750225,141.09,141.06,0.68]
[1764249497409,3.37750225,141.09,141.07,0.68]
[1764249498412,10.46522835,141.09,141.07,0.68]
[1764249498792,3.37750225,141.09,141.07,0.68]
[1764249499617,10.46532507,141.09,141.07,0.68]
[1764249500090,7.08782282,141.09,141.07,0.68]
[1764249500495,10.46486933,141.1,141.07,0.68]
[1764249500910,6.51750225,141.09,141.07,0.68]
[1764249501696,13.60536342,141.09,141.07,0.68]
[1764249502502,3.37750225,141.08,141.04,7.09005741]
[1764249502706,3.37750225,141.08,141.05,0.68]
[1764249502910,10.22786117,141.09,141.05,0.68]
[1764249502911,13.60536342,141.09,141.05,0.68]
[1764249503902,3.14,141.08,141.05,0.68]
[1764249504103,10.46536342,141.09,141.05,0.68]
[1764249504302,3.14,141.08,141.05,0.68]
[1764249505532,10.46536342,141.09,141.05,0.68]
[1764249505841,13.60536342,141.09,141.05,0.68]
[1764249506525,12.39077122,141.09,141.05,7.76954482]
[1764249506903,12.39077122,141.09,141.06,0.68]
[1764249507206,12.39077122,141.09,141.05,0.68]
[1764249507207,2.82291005,141.08,141.05,0.68]
[1764249507621,0.66,141.08,141.05,0.68]
[1764249507823,2.16291005,141.08,141.05,0.68]
[1764249508021,2.16291005,141.07,141.05,0.68]
[1764249508535,0.66,141.08,141.05,0.68]
[1764249508722,2.16291005,141.07,141.05,0.68]
[1764249509112,9.2515225,141.08,141.05,0.68]
[1764249509313,3.14,141.07,141.05,0.68]
[1764249509806,10.13754461,141.08,141.05,0.68]
[1764249510119,3.14,141.07,141.05,0.68]
[1764249510306,9.2515225,141.08,141.05,0.68]
[1764249510510,3.14,141.08,141.06,2.16291005]
[1764249511020,3.14,141.08,141.07,0.68]
[1764249511428,9.550188,141.1,141.07,0.68]
[1764249511622,0.3,141.1,141.07,9.93146138]
[1764249511827,8.80994492,141.16,141.09,2.16291005]
[1764249511828,3.14,141.14,141.09,2.16291005]
[1764249512005,12.38807371,141.14,141.09,2.16291005]
[1764249512209,12.38807371,141.14,141.1,0.68]
[1764249513837,15.89892822,141.16,141.11,2.16291005]
[1764249513838,3.04843002,141.16,141.11,2.16291005]
[1764249514044,3.14,141.16,141.12,2.16291005]
[1764249514547,3.14,141.16,141.13,0.68]
[1764249515010,10.22417401,141.16,141.13,0.68]
[1764249515214,3.14,141.16,141.13,0.68]
[1764249515436,10.22418092,141.16,141.13,0.68]
[1764249515643,3.14,141.16,141.13,0.68]
[1764249515945,2.82291005,141.2,141.15,2.16291005]
[1764249516147,3.14,141.18,141.16,0.68]
[1764249516446,5.30291005,141.18,141.16,0.68]
[1764249517244,3.14,141.18,141.16,0.68]
[1764249517534,7.08296307,141.19,141.16,0.68]
[1764249517746,3.14,141.19,141.16,0.68]
[1764249517917,5.30291005,141.19,141.16,0.68]
[1764249518708,7.96752067,141.2,141.16,0.68]
[1764249518709,0.88526912,141.2,141.16,7.76413783]
[1764249518914,3.14,141.19,141.16,7.76413783]
[1764249519117,3.14,141.19,141.17,0.68]
[1764249519316,0.76,141.21,141.17,0.68]
[1764249519317,2.26291005,141.21,141.17,7.76359174]
[1764249519711,2.26291005,141.21,141.18,2.84291005]